fUSD/lending_fUSD_20260409
["ID","MTS","AMOUNT","RATE_DAILY","PERIOD"]
[420123404,1775697043639,-500.0,0.00015648,2]
[420123405,1775697043649,-500.0,0.00015648,2]
[420123406,1775697043658,-500.0,0.00015648,2]
[420123407,1775697043667,-500.0,0.00015648,2]
[420123408,1775697043677,-248.44472633,0.00015653,2]
[420123409,1775697043685,-1000.0,0.00015661,2]
[420123410,1775697043693,-4206.088375,0.0001567,2]
[420123411,1775697043701,-370.16,0.00015677,2]
[420123412,1775697043711,-1573.0,0.0001568,2]
[420123413,1775697043720,-162.0,0.0001568,2]
[420123415,1775697043730,-363.0,0.00015684,2]
[420123417,1775697043738,-4478.46,0.00015684,2]
[420123418,1775697043747,-152.1118183,0.00015685,2]
[420123419,1775697043756,-500.0,0.00015694,2]
[420123420,1775697043765,-466.38554611,0.00015694,2]
[420123421,1775697043773,-500.0,0.00015699,2]
[420123422,1775697043783,-500.0,0.00015699,2]
[420123423,1775697043791,-500.0,0.00015699,2]
[420123424,1775697043800,-200.35,0.000157,2]
[420123425,1775697043809,-900.0,0.000157,5]
[420123426,1775697043815,-306.0,0.000157,2]
[420123427,1775697043823,-459.28005549,0.000157,2]
[420123428,1775697043832,-1000.0,0.000157,2]
[420123429,1775697043842,-1000.67081663,0.000157,2]
[420123430,1775697043852,-313.0,0.000157,2]
[420123431,1775697043862,-470.17252781,0.000157,2]
[420123432,1775697043872,-200.0,0.000157,2]
[420123433,1775697043882,-700.0,0.000157,2]
[420123434,1775697043892,-466.38554611,0.000157,2]
[420123435,1775697043903,-466.38554611,0.000157,2]
[420123436,1775697043913,-241.40516621,0.00015701,2]
[420123437,1775697043922,-151.0,0.00015701,2]
[420123438,1775697043932,-4206.088375,0.00015703,2]
[420123439,1775697043942,-248.44472633,0.00015703,2]
[420123440,1775697043952,-500.0,0.00015703,2]
[420123441,1775697043963,-500.0,0.00015703,2]
[420123442,1775697043973,-1099.20357934,0.00015703,5]
[420123443,1775697043983,-500.0,0.00015703,2]
[420123444,1775697043993,-500.0,0.00015703,2]
[420123445,1775697044004,-500.0,0.00015703,2]
[420123446,1775697044014,-2331.1175171,0.00015704,2]
[420123447,1775697044025,-78321.3684466,0.00015704,2]
[420123448,1775697044035,-3226.6650196,0.00015704,2]
[420123449,1775697044045,-214660.6421042,0.00015704,2]
[420123450,1775697044055,-52745.1291043,0.00015704,2]
[420123451,1775697044065,-137866.1995431,0.00015704,2]
[420123452,1775697044075,-3354.231875,0.00015704,2]
[420123453,1775697044084,-3979.8195639,0.00015704,2]
[420123454,1775697044094,-151.0,0.00015707,2]
[420123455,1775697044104,-151.0,0.00015707,2]
[420123456,1775697044114,-151.0,0.00015707,2]
[420123457,1775697044124,-151.0,0.00015707,2]
[420123458,1775697044134,-151.0,0.00015707,2]
[420123459,1775697044144,-151.0,0.00015707,2]
[420123460,1775697044155,-500.0,0.00015709,2]
[420123461,1775697044166,-500.0,0.00015709,2]
[420123462,1775697044176,-471.90197381,0.00015709,2]
[420123463,1775697044185,-277.55659601,0.00015709,2]
[420123464,1775697044196,-500.0,0.00015709,2]
[420123465,1775697044206,-500.0,0.00015709,2]
[420123466,1775697044216,-500.0,0.00015709,2]
[420123467,1775697044225,-500.0,0.00015709,2]
[420123468,1775697044235,-500.0,0.00015709,2]
[420123469,1775697044245,-500.0,0.00015709,2]
[420123470,1775697044254,-500.0,0.00015709,2]
[420123471,1775697044263,-500.0,0.00015709,2]
[420123472,1775697044273,-500.0,0.00015709,2]
[420123473,1775697044283,-500.0,0.00015709,2]
[420123474,1775697044292,-500.0,0.00015709,2]
[420123475,1775697044302,-500.0,0.00015709,2]
[420123476,1775697044312,-500.0,0.00015709,2]
[420123477,1775697044322,-500.0,0.00015709,2]
[420123478,1775697044332,-500.0,0.00015709,2]
[420123479,1775697044342,-500.0,0.00015709,2]
[420123480,1775697044352,-500.0,0.00015709,2]
[420123481,1775697044361,-500.0,0.00015709,2]
[420123482,1775697044371,-500.0,0.00015709,2]
[420123483,1775697044380,-500.0,0.00015709,2]
[420123484,1775697044390,-500.0,0.00015709,2]
[420123485,1775697044400,-500.0,0.00015709,2]
[420123486,1775697044410,-500.0,0.00015709,2]
[420123487,1775697044420,-500.0,0.00015709,2]
[420123488,1775697044430,-189.82902191,0.00015709,2]
[420123489,1775697044439,-500.0,0.00015709,2]
[420123490,1775697044449,-500.0,0.00015709,2]
[420123491,1775697044458,-500.0,0.00015709,2]
[420123492,1775697044467,-500.0,0.00015709,2]
[420123493,1775697044477,-500.0,0.00015709,2]
[420123494,1775697044487,-500.0,0.00015709,2]
[420123495,1775697044497,-500.0,0.00015709,2]
[420123496,1775697044507,-500.0,0.00015709,2]
[420123497,1775697044517,-500.0,0.00015709,2]
[420123498,1775697044527,-500.0,0.00015709,2]
[420123499,1775697044536,-500.0,0.00015709,2]
[420123500,1775697044546,-500.0,0.00015709,2]
[420123501,1775697044556,-500.0,0.00015709,2]
[420123502,1775697044566,-500.0,0.00015709,2]
[420123503,1775697044576,-500.0,0.00015709,2]
[420123504,1775697044586,-500.0,0.00015709,2]
[420123505,1775697044595,-500.0,0.00015709,2]
[420123506,1775697044605,-500.0,0.00015709,2]
[420123507,1775697044614,-500.0,0.00015709,2]
[420123508,1775697044624,-500.0,0.00015709,2]
[420123509,1775697044633,-500.0,0.00015709,2]
[420123510,1775697044643,-500.0,0.00015709,2]
[420123511,1775697044653,-666.0,0.00015709,2]
[420123512,1775697044662,-1956.0,0.0001571,5]
[420123513,1775697044671,-933930.59043153,0.0001571,2]
[420123514,1775697044680,-200.0,0.0001571,2]
[420123515,1775697044690,-244.11827759,0.0001571,2]
[420123516,1775697044699,-500.0,0.0001571,2]
[420123517,1775697044708,-500.0,0.0001571,2]
[420123518,1775697044717,-500.0,0.0001571,2]
[420123519,1775697044727,-500.0,0.0001571,2]
[420123520,1775697044736,-500.0,0.0001571,2]
[420123521,1775697044745,-500.0,0.0001571,2]
[420123522,1775697044755,-500.0,0.0001571,2]
[420123523,1775697044764,-500.0,0.0001571,2]
[420123524,1775697044774,-500.0,0.0001571,2]
[420123525,1775697044783,-500.0,0.0001571,2]
[420123526,1775697044792,-500.0,0.0001571,2]
[420123527,1775697044801,-500.0,0.0001571,2]
[420123528,1775697044811,-500.0,0.0001571,2]
[420123529,1775697044820,-500.0,0.0001571,2]
[420123530,1775697044830,-500.0,0.0001571,2]
[420123531,1775697044839,-500.0,0.0001571,2]
[420123532,1775697044848,-500.0,0.0001571,2]
[420123533,1775697044858,-500.0,0.0001571,2]
[420123534,1775697044867,-500.0,0.0001571,2]
[420123535,1775697044877,-500.0,0.0001571,2]
[420123536,1775697044886,-500.0,0.0001571,2]
[420123537,1775697044896,-500.0,0.0001571,2]
[420123538,1775697044906,-500.0,0.0001571,2]
[420123539,1775697044916,-200.0,0.0001571,2]
[420123540,1775697044926,-152.0,0.0001571,2]
[420123541,1775697044936,-154.22301552,0.0001571,2]
[420123542,1775697044946,-151.0,0.0001571,2]
[420123543,1775697044955,-500.0,0.0001571,2]
[420123544,1775697044964,-500.0,0.0001571,2]
[420123545,1775697044974,-500.0,0.0001571,2]
[420123546,1775697044984,-500.0,0.0001571,2]
[420123547,1775697044993,-500.0,0.0001571,2]
[420123548,1775697045002,-500.0,0.0001571,2]
[420123549,1775697045011,-500.0,0.0001571,2]
[420123550,1775697045021,-500.0,0.0001571,2]
[420123551,1775697045030,-500.0,0.0001571,2]
[420123552,1775697045039,-500.0,0.0001571,2]
[420123553,1775697045048,-500.0,0.0001571,2]
[420123554,1775697045058,-500.0,0.0001571,2]
[420123555,1775697045067,-500.0,0.0001571,2]
[420123556,1775697045076,-500.0,0.0001571,2]
[420123557,1775697045086,-500.0,0.0001571,2]
[420123558,1775697045095,-500.0,0.0001571,2]
[420123559,1775697045104,-500.0,0.0001571,2]
[420123560,1775697045114,-500.0,0.0001571,2]
[420123561,1775697045124,-500.0,0.0001571,2]
[420123562,1775697045133,-904.0,0.0001571,2]
[420123563,1775697045143,-944.0,0.0001571,2]
[420123564,1775697045153,-757.0,0.0001571,2]
[420123565,1775697045162,-500.0,0.0001571,2]
[420123566,1775697045172,-762.0,0.0001571,2]
[420123567,1775697045181,-200.0,0.0001571,2]
[420123568,1775697045191,-150.0,0.0001571,2]
[420123569,1775697045199,-2000.0,0.0001571,2]
[420123570,1775697045209,-2000.0,0.0001571,2]
[420123571,1775697045219,-2000.0,0.0001571,2]
[420123572,1775697045229,-11357.41246617,0.0001571,2]
[420123573,1775697045238,-500.0,0.0001571,2]
[420123574,1775697045247,-150.0,0.0001571,2]
[420123575,1775697045257,-66715.20242263,0.0001571,2]
[420123576,1775697045267,-150.0,0.0001571,2]
[420123577,1775697045277,-7915.72376919,0.0001571,2]
[420123578,1775697045287,-500.0,0.0001571,2]
[420123579,1775697045297,-500.0,0.0001571,2]
[420123580,1775697045306,-500.0,0.0001571,2]
[420123581,1775697045315,-500.0,0.0001571,2]
[420123582,1775697045325,-500.0,0.0001571,2]
[420123583,1775697045333,-500.0,0.0001571,2]
[420123584,1775697045343,-500.0,0.0001571,2]
[420123585,1775697045352,-500.0,0.0001571,2]
[420123586,1775697045362,-500.0,0.0001571,2]
[420123587,1775697045371,-500.0,0.0001571,2]
[420123588,1775697045380,-500.0,0.0001571,2]
[420123589,1775697045389,-500.0,0.0001571,2]
[420123590,1775697045399,-500.0,0.0001571,2]
[420123591,1775697045409,-500.0,0.0001571,2]
[420123592,1775697045419,-500.0,0.0001571,2]
[420123593,1775697045428,-500.0,0.0001571,2]
[420123594,1775697045438,-531103.37770074,0.0001571,2]
[420123598,1775697047041,-500.0,0.00010598,2]
[420123599,1775697047050,-437.10716485,0.00010598,2]
[420123600,1775697047060,-500.0,0.00010598,2]
[420123601,1775697047070,-500.0,0.00010598,2]
[420123602,1775697047079,-609.09277529,0.00010598,2]
[420123603,1775697047090,-500.0,0.00010598,2]
[420123604,1775697047100,-195.05699266,0.00010598,2]
[420123605,1775697047110,-500.0,0.00010598,2]
[420123606,1775697047119,-500.0,0.00010598,2]
[420123607,1775697047129,-428.03522177,0.00010598,2]
[420123608,1775697047138,-574.32757906,0.00010598,2]
[420123609,1775697047148,-3180447.48609819,0.0001571,2]
[420123610,1775697047230,-49966.89217123,0.0001571,2]
[420123611,1775697047242,-1411.0957044,0.0001571,2]
[420123612,1775697047254,-13992.64997614,0.0001571,2]
[420123613,1775697047266,-337.05962658,0.0001571,2]
[420123614,1775697047826,-500.0,0.00010598,2]
[420123615,1775697047836,-500.0,0.00010598,2]
[420123616,1775697047845,-69.74267855,0.00010598,2]
[420123617,1775697047857,-430.25732145,0.00010598,2]
[420123618,1775697047866,-500.0,0.00010598,2]
[420123619,1775697047875,-69.5397701,0.00010598,2]
[420123620,1775697047889,-430.4602299,0.00010598,2]
[420123621,1775697047898,-104.18711016,0.00010598,2]
[420123622,1775697047911,-395.81288984,0.00010598,2]
[420123623,1775697047921,-500.0,0.00010598,2]
[420123624,1775697047930,-500.0,0.00010598,2]
[420123625,1775697047939,-500.0,0.00010598,2]
[420123626,1775697047948,-500.0,0.00010598,2]
[420123627,1775697047958,-500.0,0.00010598,2]
[420123628,1775697047967,-500.0,0.00010598,2]
[420123629,1775697047977,-500.0,0.00010598,2]
[420123630,1775697047987,-500.0,0.00010598,2]
[420123631,1775697047996,-500.0,0.00010598,2]
[420123632,1775697048005,-500.0,0.00010598,2]
[420123633,1775697048015,-500.0,0.00010598,2]
[420123634,1775697048025,-500.0,0.00010598,2]
[420123635,1775697048036,-500.0,0.00010598,2]
[420123636,1775697048045,-500.0,0.00010598,2]
[420123637,1775697048055,-500.0,0.00010598,2]
[420123638,1775697048065,-421.22043001,0.00010598,2]
[420123639,1775697048075,-500.0,0.00010598,2]
[420123640,1775697048084,-500.0,0.00010598,2]
[420123641,1775697048094,-6022.0,0.00014412,2]
[420123642,1775697048104,-165070.77759299,0.0001571,2]
[420123643,1775697048117,-20820.0646233,0.0001571,2]
[420123644,1775697048129,-5609.31632605,0.0001571,2]
[420123647,1775697049637,-500.0,0.00013788,2]
[420123649,1775697049647,-259.91269,0.00014625,2]
[420123651,1775697049657,-1129.72654553,0.00015396,2]
[420123653,1775697049667,-1034.16061478,0.00015396,2]
[420123654,1775697049677,-1106.30174416,0.00015396,2]
[420123656,1775697049687,-4819.93506379,0.00015604,2]
[420123658,1775697049699,-180.06493621,0.00015604,2]
[420123660,1775697049709,-500.0,0.00015609,2]
[420123662,1775697049718,-372.74129812,0.00015703,2]
[420123664,1775697049890,-127.25870188,0.00015703,2]
[420123666,1775697049901,-472.74129812,0.00015703,2]
[420123668,1775697049914,-27.25870188,0.00015703,2]
[420123669,1775697049924,-302.17729408,0.00015709,2]
[420123671,1775697050198,-197.82270592,0.00015709,2]
[420123674,1775697050209,-500.0,0.00015709,2]
[420123676,1775697050219,-500.0,0.00015709,2]
[420123679,1775697050229,-500.0,0.00015709,2]
[420123682,1775697050239,-500.0,0.00015709,2]
[420123684,1775697050249,-116109.77375063,0.0001571,2]
[420123691,1775698233185,-300.0,0.00010386,2]
[420123692,1775698233195,-500.0,0.00010386,2]
[420123694,1775698233205,-51.12712388,0.00010393,2]
[420123697,1775698233217,-198.87287612,0.00010393,2]
[420123698,1775698233227,-166.29811873,0.00010399,2]
[420123699,1775698233236,-735.03,0.00010462,2]
[420123700,1775698233246,-1200.0,0.00010497,2]
[420123701,1775698233256,-300.0,0.00010498,2]
[420123702,1775698233266,-150.0,0.00010498,2]
[420123703,1775698233278,-4151.2258,0.00010499,2]
[420123704,1775698233288,-13170.8969,0.00010499,2]
[420123705,1775698233299,-1660.9685,0.00010499,2]
[420123706,1775698233311,-1590.4159,0.00010499,2]
[420123707,1775698233321,-87398.69569578,0.00010499,2]
[420123708,1775698233335,-109861.14660422,0.00010499,2]
[420123709,1775698233345,-500.0,0.00010537,2]
[420123710,1775698233356,-500.0,0.00010537,2]
[420123711,1775698233366,-500.0,0.00010537,2]
[420123712,1775698233377,-500.0,0.00010537,2]
[420123713,1775698233388,-500.0,0.00010537,2]
[420123714,1775698233398,-459.49229623,0.00010537,2]
[420123715,1775698233408,-500.0,0.00010537,2]
[420123716,1775698233418,-500.0,0.00010537,2]
[420123717,1775698233428,-500.0,0.00010537,2]
[420123718,1775698233444,-500.0,0.00010537,2]
[420123719,1775698233454,-500.0,0.00010537,2]
[420123720,1775698233464,-500.0,0.00010537,2]
[420123721,1775698233475,-500.0,0.00010537,2]
[420123722,1775698233485,-500.0,0.00010537,2]
[420123723,1775698233495,-1094.95730892,0.00010538,2]
[420123724,1775698233508,-64958.94269108,0.00010538,2]
[420123725,1775698233518,-500.0,0.00010573,2]
[420123726,1775698233528,-151.0,0.00010593,2]
[420123727,1775698233539,-151.0,0.00010593,2]
[420123728,1775698233548,-151.0,0.00010593,2]
[420123729,1775698233558,-151.0,0.00010593,2]
[420123730,1775698233568,-151.0,0.00010593,2]
[420123731,1775698233578,-151.0,0.00010593,2]
[420123732,1775698233588,-500.0,0.00010593,2]
[420123733,1775698233598,-151.0,0.00010593,2]
[420123734,1775698233608,-500.0,0.00010593,2]
[420123735,1775698233618,-151.0,0.00010593,2]
[420123736,1775698233628,-500.0,0.00010593,2]
[420123737,1775698233637,-200.0,0.00010593,2]
[420123738,1775698233647,-500.0,0.00010593,2]
[420123739,1775698233657,-500.0,0.00010593,2]
[420123740,1775698233667,-500.0,0.00010593,2]
[420123741,1775698233677,-500.0,0.00010593,2]
[420123742,1775698233688,-395.59162672,0.00010593,2]
[420123743,1775698233698,-500.0,0.00010593,2]
[420123744,1775698233708,-237.05172416,0.00010593,2]
[420123745,1775698233718,-1156.41848616,0.00010593,2]
[420123746,1775698233728,-176.73187577,0.00010593,2]
[420123747,1775698233738,-646.47,0.00010593,2]
[420123748,1775698233748,-170.97809063,0.00010598,2]
[420123749,1775698233758,-500.0,0.00010598,2]
[420123750,1775698233768,-500.0,0.00010598,2]
[420123751,1775698233778,-500.0,0.00010598,2]
[420123752,1775698233788,-351.63639503,0.00010598,2]
[420123753,1775698233798,-500.0,0.00010598,2]
[420123754,1775698233809,-500.0,0.00010598,2]
[420123755,1775698233819,-500.0,0.00010598,2]
[420123756,1775698233829,-500.0,0.00010598,2]
[420123757,1775698233839,-500.0,0.00010598,2]
[420123758,1775698233849,-500.0,0.00010598,2]
[420123759,1775698233859,-573.33155881,0.00010598,2]
[420123760,1775698233869,-600.0,0.00010598,2]
[420123761,1775698233879,-500.0,0.00010598,2]
[420123762,1775698233889,-500.0,0.00010598,2]
[420123763,1775698233901,-500.0,0.00010598,2]
[420123764,1775698233911,-500.0,0.00010598,2]
[420123765,1775698233921,-187.15588438,0.00010598,2]
[420123766,1775698233932,-48922.62998412,0.00010599,2]
[420123767,1775698233945,-30228.26920253,0.00010599,2]
[420123768,1775698233963,-48905.30081685,0.00010599,2]
[420123769,1775698233976,-1254.41808677,0.00010599,2]
[420123770,1775698233988,-4022.18036863,0.00010599,2]
[420123771,1775698238042,-462.17363963,0.00010599,2]
[420123772,1775698238054,-4000.96245169,0.00010599,2]
[420123773,1775698238066,-318.08200122,0.00010599,2]
[420123775,1775698238079,-1076.55582393,0.00010599,2]
[420123776,1775698238090,-1897.34812686,0.00010599,2]
[420123777,1775698238103,-44277.96999777,0.00010599,2]
[420123778,1775698238112,-500.0,0.00010625,2]
[420123779,1775698238122,-338.43909042,0.00010625,2]
[420123780,1775698238132,-606.89755033,0.0001063,2]
[420123782,1775698238527,-331.43,0.0001063,2]
[420123784,1775698238538,-1385.32564967,0.0001063,2]
[420123786,1775698238548,-150.0,0.00010654,2]
[420123788,1775698238557,-150.0,0.00010654,2]
[420123790,1775698238567,-150.0,0.00010654,2]
[420123792,1775698238577,-192.65469958,0.00010654,2]
[420123794,1775698238589,-92.66530042,0.00010654,2]
[420123796,1775698238599,-1460.85469958,0.00010726,2]
[420123798,1775698238611,-2195.14530042,0.00010726,2]
[420123800,1775698238620,-818.7713572,0.00010726,2]
[420123808,1775698241203,-2837.2286428,0.00010726,2]
[420123809,1775698241212,-3656.0,0.00010726,2]
[420123810,1775698241222,-3656.0,0.00010726,2]
[420123811,1775698241231,-3656.0,0.00010726,2]
[420123812,1775698241241,-3656.0,0.00010726,2]
[420123813,1775698241251,-3656.0,0.00010726,2]
[420123815,1775698241260,-3656.0,0.00010726,2]
[420123816,1775698241269,-3656.0,0.00010726,2]
[420123818,1775698241279,-3656.0,0.00010726,2]
[420123820,1775698241288,-3656.0,0.00010726,2]
[420123821,1775698241298,-3656.0,0.00010726,2]
[420123822,1775698241309,-3656.0,0.00010726,2]
[420123823,1775698241318,-3656.0,0.00010726,2]
[420123824,1775698241328,-3656.0,0.00010726,2]
[420123825,1775698241337,-3656.0,0.00010726,2]
[420123826,1775698241347,-3656.0,0.00010726,2]
[420123827,1775698241357,-3656.0,0.00010726,2]
[420123828,1775698241366,-3656.0,0.00010726,2]
[420123829,1775698241376,-3656.0,0.00010726,2]
[420123830,1775698241385,-3656.0,0.00010726,2]
[420123831,1775698241394,-3656.0,0.00010726,2]
[420123832,1775698241404,-3656.0,0.00010726,2]
[420123833,1775698241413,-3662.87842736,0.00010726,2]
[420123834,1775698241422,-4258.83,0.00010766,2]
[420123835,1775698241432,-646.47,0.00010867,2]
[420123836,1775698241442,-500.0,0.00010959,2]
[420123837,1775698241451,-226.04203092,0.00010959,2]
[420123838,1775698241460,-193.0,0.00011,2]
[420123839,1775698241470,-287.0,0.00011003,2]
[420123840,1775698241479,-616.0,0.00011032,2]
[420123841,1775698241488,-151.502,0.00011087,2]
[420123842,1775698241497,-4233.19877424,0.00011099,2]
[420123843,1775698241506,-3995.73749892,0.00011099,2]
[420123844,1775698241515,-3995.73749887,0.00011099,2]
[420123845,1775698241524,-200.0,0.00011117,2]
[420123846,1775698241533,-500.0,0.00011121,2]
[420123847,1775698241542,-1199.20597015,0.00011141,2]
[420123848,1775698241551,-646.47,0.00011141,2]
[420123849,1775698241560,-502.19224822,0.00011173,2]
[420123850,1775698241570,-150.0,0.00011217,2]
[420123851,1775698241579,-4233.19877424,0.00011247,2]
[420123852,1775698241588,-646.47,0.00011415,2]
[420123853,1775698241597,-600.0,0.00011425,2]
[420123854,1775698241606,-600.0,0.00011425,2]
[420123855,1775698241615,-600.0,0.00011425,2]
[420123856,1775698241624,-195.0,0.00011425,2]
[420123857,1775698241633,-195.0,0.00011425,2]
[420123858,1775698241642,-195.0,0.00011425,2]
[420123859,1775698241652,-195.0,0.00011425,2]
[420123860,1775698241661,-195.0,0.00011425,2]
[420123861,1775698241669,-3023.43685101,0.00011425,2]
[420123862,1775698241679,-154.20387248,0.00011425,2]
[420123863,1775698241688,-300.32314758,0.00011425,2]
[420123864,1775698241698,-250.0,0.00011425,2]
[420123865,1775698241707,-600.0,0.00011425,2]
[420123866,1775698241716,-600.0,0.00011425,2]
[420123867,1775698241726,-250.0,0.00011425,2]
[420123868,1775698241735,-255.0,0.00011527,2]
[420123870,1775698241744,-1680.0,0.00011547,2]
[420123872,1775698241753,-150.0,0.000116,2]
[420123873,1775698241762,-646.47,0.00011688,2]
[420123875,1775698241771,-3995.73749887,0.00011699,2]
[420123877,1775698241780,-1811.85,0.0001175,2]
[420123879,1775698241789,-4233.19877424,0.00011828,2]
[420123881,1775698241798,-646.51,0.00011962,2]
[420123882,1775698241807,-3995.73749887,0.00012299,2]
[420123883,1775698241816,-4233.19877424,0.0001241,2]
[420123884,1775698241825,-222.03,0.00012539,2]
[420123885,1775698241835,-6197.49,0.00012645,2]
[420123886,1775698241844,-433.0,0.0001266,2]
[420123887,1775698241852,-2351.0,0.00012701,2]
[420123888,1775698241862,-150.99,0.00012893,2]
[420123889,1775698241871,-3563.25,0.00012893,2]
[420123890,1775698241880,-1000.0,0.00012899,2]
[420123891,1775698241889,-3995.73749887,0.00012899,2]
[420123892,1775698241898,-173.0022,0.000129,2]
[420123893,1775698241908,-4233.19877424,0.00012992,2]
[420123894,1775698241917,-250.0,0.00013,2]
[420123895,1775698241926,-150.0,0.00013064,2]
[420123896,1775698241936,-502.0,0.000131,2]
[420123897,1775698241946,-3995.73749887,0.000135,2]
[420123898,1775698241955,-3000.0,0.00013534,2]
[420123899,1775698241964,-4233.19877424,0.00013573,2]
[420123900,1775698241973,-500.0,0.0001362,2]
[420123901,1775698241982,-500.0,0.00013698,2]
[420123902,1775698241991,-500.0,0.00013698,2]
[420123903,1775698242000,-500.0,0.00013698,2]
[420123904,1775698242009,-500.0,0.00013698,2]
[420123905,1775698242018,-500.0,0.00013698,2]
[420123906,1775698242027,-500.0,0.00013698,2]
[420123907,1775698242036,-500.0,0.00013698,2]
[420123908,1775698242046,-500.0,0.00013698,2]
[420123909,1775698242055,-500.0,0.00013698,2]
[420123910,1775698242064,-500.0,0.00013698,2]
[420123911,1775698242073,-500.0,0.00013698,2]
[420123912,1775698242082,-500.0,0.00013698,2]
[420123913,1775698242091,-200.0,0.00013699,2]
[420123914,1775698242100,-154.1,0.00013699,2]
[420123915,1775698242109,-500.0,0.00013788,2]
[420123916,1775698242118,-500.0,0.00013788,2]
[420123917,1775698242127,-500.0,0.00013788,2]
[420123918,1775698242136,-500.0,0.00013788,2]
[420123919,1775698242145,-2565.87,0.00013848,2]
[420123920,1775698242154,-736.0,0.00013899,2]
[420123921,1775698242164,-1811.85,0.00013913,2]
[420123922,1775698242173,-3292.0,0.00013972,2]
[420123923,1775698242182,-500.0,0.00014096,2]
[420123924,1775698242191,-500.0,0.00014096,2]
[420123925,1775698242200,-3995.73749887,0.000141,2]
[420123926,1775698242209,-502.0,0.00014129,2]
[420123927,1775698242218,-4233.19877424,0.00014155,2]
[420123928,1775698242227,-1000.0,0.00014193,2]
[420123929,1775698242236,-199.5318,0.000143,2]
[420123930,1775698242245,-457.63263165,0.00014325,2]
[420123931,1775698242254,-162.0,0.000144,2]
[420123932,1775698242263,-1573.0,0.000144,2]
[420123933,1775698242272,-162.0,0.000144,2]
[420123934,1775698242281,-1573.0,0.000144,2]
[420123935,1775698242290,-1000.0,0.00014404,2]
[420123936,1775698242299,-160.0,0.00014429,2]
[420123937,1775698242308,-405.02227671,0.00014579,2]
[420123938,1775698242317,-3995.73749887,0.000147,2]
[420123939,1775698242327,-1000.0,0.00014732,2]
[420123940,1775698242336,-160.0,0.00014733,7]
[420123941,1775698242345,-554.940023,0.00014733,7]
[420123942,1775698242354,-949.880046,0.00014733,7]
[420123943,1775698242364,-4233.19877424,0.00014737,2]
[420123944,1775698242373,-178.14315,0.00014787,7]
[420123945,1775698242382,-400.0,0.000148,5]
[420123946,1775698242391,-160.0,0.0001483,7]
[420123947,1775698242400,-310.120379,0.0001483,7]
[420123948,1775698242409,-460.240758,0.0001483,7]
[420123949,1775698242418,-160.0,0.00014841,7]
[420123950,1775698242428,-526.019859,0.00014841,7]
[420123951,1775698242437,-892.039719,0.00014841,7]
[420123952,1775698242446,-150.0,0.00014889,2]
[420123953,1775698242455,-800.0,0.000149,5]
[420123954,1775698242464,-3000.0,0.00014904,2]
[420123955,1775698242474,-601.3376128,0.00014924,2]
[420123956,1775698242483,-200.0,0.00014924,2]
[420123957,1775698242492,-1191.11104075,0.00014924,2]
[420123958,1775698242501,-500.0,0.00014924,2]
[420123959,1775698242510,-578.20924308,0.00014924,2]
[420123960,1775698242519,-743.50770149,0.00014924,2]
[420123961,1775698242528,-151.0,0.00014924,2]
[420123962,1775698242537,-174.61919141,0.00014924,2]
[420123963,1775698242546,-5017.81708769,0.00014925,2]
[420123964,1775698242556,-350.0,0.00014944,2]
[420123965,1775698242565,-500.0,0.00014979,2]